bitfinex/quotes_SOLUSD_20250802
["timestamp","ask_amount","ask_price","bid_price","bid_amount"]
[1754097695940,21.62442953,164.59,164.58,89.6]
[1754097696146,33.02151201,164.59,164.58,89.6]
[1754097696346,16.78468397,164.58,164.54,0.06]
[1754097696661,4.09974556,164.57,164.54,0.06]
[1754097696857,4.09974556,164.56,164.54,0.06]
[1754097697053,4.09974556,164.55,164.54,0.06]
[1754097697261,4.80974556,164.55,164.54,0.06]
[1754097704160,21.59442953,164.55,164.54,0.06]
[1754097708959,64.45442953,164.55,164.54,0.06]
[1754097711661,66.89011253,164.55,164.54,0.06]
[1754097722572,63.74442953,164.55,164.54,0.06]
[1754097722773,64.43442953,164.55,164.54,0.06]
[1754097722972,21.57442953,164.55,164.54,0.06]
[1754097723277,20.87295149,164.55,164.54,0.06]
[1754097723700,4.08826752,164.55,164.54,5.58137922]
[1754097724091,4.08826752,164.56,164.54,5.58137922]
[1754097724980,4.08826752,164.56,164.55,5.52137922]
[1754097725184,4.08826752,164.57,164.55,5.52137922]
[1754097725398,4.08826752,164.58,164.56,5.32137922]
[1754097725566,4.08826752,164.58,164.56,5.52137922]
[1754097726077,20.90295149,164.59,164.56,5.52137922]
[1754097726301,4.08826752,164.58,164.56,5.52137922]
[1754097727981,4.08826752,164.58,164.56,5.32137922]
[1754097728589,4.77826752,164.58,164.56,5.32137922]
[1754097729997,4.08826752,164.58,164.56,5.32137922]
[1754097732294,4.80826752,164.59,164.57,5.32137922]
[1754097734489,4.11826752,164.59,164.57,5.32137922]
[1754097735090,4.80826752,164.59,164.57,5.32137922]
[1754097738082,4.80826752,164.59,164.56,6.07679025]
[1754097738277,4.80826752,164.59,164.57,5.32137922]
[1754097739214,4.80826752,164.59,164.57,94.92137922]
[1754097744912,4.11826752,164.59,164.57,94.92137922]
[1754097745998,4.80826752,164.59,164.57,94.92137922]
[1754097752312,0.03,164.59,164.58,5.32137922]
[1754097754601,0.03,164.59,164.58,94.92137922]
[1754097754798,0.69,164.59,164.58,89.6]
[1754097755005,0.69,164.59,164.58,94.92137922]
[1754097755518,0.03,164.59,164.58,94.92137922]
[1754097761513,0.03,164.59,164.58,89.6]
[1754097761712,0.03,164.59,164.58,94.92137922]
[1754097763514,4.11826752,164.59,164.58,94.92137922]
[1754097766711,4.11826752,164.59,164.58,137.72137922]
[1754097774329,4.77826752,164.59,164.58,94.92137922]
[1754097777726,4.11826752,164.59,164.58,94.92137922]
[1754097782451,4.11826752,164.59,164.58,89.6]
[1754097782651,4.80826752,164.59,164.58,89.6]
[1754097783357,9.91860192,164.59,164.58,89.6]
[1754097784149,9.91860192,164.59,164.54,137.76137922]
[1754097784335,4.77826752,164.58,164.55,5.32137922]
[1754097784538,4.08826752,164.57,164.55,5.32137922]
[1754097784744,4.08826752,164.56,164.55,5.32137922]
[1754097784943,4.77826752,164.56,164.55,5.32137922]
[1754097786267,4.77826752,164.56,164.54,137.76137922]
[1754097786442,4.08826752,164.55,164.54,137.76137922]
[1754097786632,4.77826752,164.55,164.54,137.76137922]
[1754097786832,4.77826752,164.55,164.54,89.66]
[1754097792056,4.77826752,164.55,164.54,0.06]
[1754097793231,26.88433071,164.55,164.54,0.06]
[1754097794585,29.32001371,164.55,164.54,0.06]
[1754097794853,35.39719389,164.55,164.54,0.06]
[1754097795042,40.50752829,164.55,164.54,0.06]
[1754097795241,35.39719389,164.55,164.54,0.06]
[1754097797095,40.50752829,164.55,164.54,0.06]
[1754097797357,83.28752829,164.55,164.54,0.06]
[1754097799066,83.28752829,164.55,164.53,0.06]
[1754097799067,16.78468397,164.54,164.53,0.06]
[1754097799254,22.10606319,164.53,164.52,0.06]
[1754097799462,16.78468397,164.52,164.5,1e-08]
[1754097799764,42.78468397,164.47,164.45,0.2]
[1754097799939,63.65295149,164.46,164.45,0.2]
[1754097800139,64.34295149,164.46,164.45,0.2]
[1754097800344,70.42345738,164.46,164.45,0.2]
[1754097800537,75.7448366,164.46,164.45,0.2]
[1754097801572,78.62951993,164.46,164.45,0.2]
[1754097801869,83.59527701,164.46,164.45,0.2]
[1754097804865,86.03289001,164.46,164.45,0.2]
[1754097805382,49.31056449,164.46,164.45,0.2]
[1754097805548,89.65295149,164.46,164.45,0.2]
[1754097806279,90.34295149,164.46,164.45,0.2]
[1754097806955,95.66433071,164.46,164.45,0.2]
[1754097808158,101.7448366,164.46,164.45,0.2]
[1754097808975,106.66911337,164.46,164.45,0.2]
[1754097809784,16.78468397,164.45,164.41,4.22137922]
[1754097809990,43.49,164.44,164.4,95.32137922]
[1754097810180,42.8,164.43,164.4,95.32137922]
[1754097811364,42.8,164.43,164.4,95.12137922]
[1754097811570,42.8,164.43,164.41,5.52137922]
[1754097816197,43.5,164.43,164.41,5.32137922]
[1754097816687,0.7,164.42,164.4,89.8]
[1754097817170,0.7,164.41,164.4,89.8]
[1754097817375,0.7,164.41,164.4,0.2]
[1754097817885,43.5,164.43,164.4,5.52137922]
[1754097818095,0.7,164.42,164.4,5.52137922]
[1754097818270,0.7,164.42,164.4,0.2]
[1754097818582,0.7,164.41,164.4,0.2]
[1754097819170,43.5,164.41,164.4,0.2]
[1754097820294,60.28468397,164.41,164.4,0.2]
[1754097822188,66.36703905,164.41,164.4,0.2]
[1754097822394,71.68841827,164.41,164.4,0.2]
[1754097823411,66.36703905,164.41,164.4,0.2]
[1754097823579,71.68841827,164.41,164.4,0.2]
[1754097824125,60.28468397,164.41,164.4,0.2]
[1754097824278,65.60606319,164.41,164.4,0.2]
[1754097824992,71.68841827,164.41,164.4,0.2]
[1754097825185,66.36703905,164.41,164.4,0.2]
[1754097825504,66.36703905,164.41,164.39,0.06]
[1754097825505,70.42392224,164.41,164.39,0.06]
[1754097825702,35.37826241,164.4,164.39,0.06]
[1754097825909,36.07826241,164.4,164.39,0.06]
[1754097826792,39.10021963,164.4,164.39,0.06]
[1754097828293,35.96762866,164.4,164.39,0.06]
[1754097828502,29.8849036,164.4,164.39,0.06]
[1754097828796,38.40598366,164.4,164.39,0.06]
[1754097832007,16.78468397,164.38,164.37,0.2]
[1754097832186,72.0049036,164.38,164.37,0.2]
[1754097832385,72.7049036,164.38,164.37,0.2]
[1754097833486,78.78836874,164.38,164.37,0.2]
[1754097833881,81.22731874,164.38,164.37,0.2]
[1754097834281,16.78468397,164.37,164.36,0.2]
[1754097834481,29.8849036,164.37,164.36,0.2]
[1754097835390,35.96873884,164.37,164.36,0.2]
[1754097836006,78.78873884,164.37,164.36,0.2]
[1754097836202,87.13207584,164.37,164.36,0.2]
[1754097838713,93.94787113,164.37,164.36,0.2]
[1754097839410,16.78468397,164.29,164.27,0.4]
[1754097839618,59.60468397,164.29,164.27,0.4]
[1754097839989,59.60468397,164.29,164.28,0.4]
[1754097840188,63.6757637,164.29,164.28,0.4]
[1754097840592,63.6757637,164.29,164.25,8.34333644]
[1754097840793,59.60468397,164.29,164.26,0.4]
[1754097840996,59.60468397,164.29,164.25,8.34333644]
[1754097841219,59.60468397,164.29,164.27,0.4]
[1754097841711,4.07280138,164.28,164.27,0.4]
[1754097843620,4.07280138,164.28,164.26,0.4]
[1754097844798,42.82,164.27,164.25,0.4]
[1754097845115,42.82,164.27,164.23,90.2]
[1754097845116,8.34333644,164.26,164.23,90.2]
[1754097845323,8.34333644,164.26,164.23,0.6]
[1754097845518,42.82,164.25,164.23,0.6]
[1754097845816,42.82,164.25,164.23,0.2]
[1754097846017,42.82,164.25,164.23,0.6]
[1754097846723,8.34333644,164.26,164.23,0.6]
[1754097846724,26.0,164.26,164.24,0.4]
[1754097846899,26.0,164.26,164.24,8.74333644]
[1754097847099,26.0,164.26,164.25,0.4]
[1754097847532,26.0,164.26,164.23,8.94333644]
[1754097849043,26.0,164.26,164.23,0.6]
[1754097849324,26.0,164.26,164.23,8.94333644]
[1754097849497,26.0,164.26,164.24,8.74333644]
[1754097849696,26.0,164.26,164.25,0.4]
[1754097850121,16.78468397,164.29,164.25,8.74333644]
[1754097850327,16.78468397,164.29,164.28,8.34333644]
[1754097850537,16.78468397,164.29,164.28,8.74333644]
[1754097850822,16.78468397,164.29,164.28,8.34333644]
[1754097851335,16.78468397,164.29,164.27,0.4]
[1754097851499,16.78468397,164.29,164.27,8.74333644]
[1754097852109,16.78468397,164.29,164.27,0.4]
[1754097852328,17.49468397,164.29,164.26,8.34333644]
[1754097853931,17.49468397,164.29,164.25,0.4]
[1754097854103,17.49468397,164.29,164.23,6.28894255]
[1754097854104,16.78468397,164.27,164.23,8.54333644]
[1754097854304,59.70468397,164.26,164.23,8.94333644]
[1754097854604,59.70468397,164.26,164.24,8.34333644]
[1754097854998,0.71,164.25,164.23,0.2]
[1754097856623,17.49468397,164.24,164.23,0.2]
[1754097858325,64.48689271,164.24,164.23,0.2]
[1754097860735,63.77689271,164.24,164.23,0.2]
[1754097862010,64.48689271,164.24,164.23,0.2]
[1754097866200,63.77689271,164.24,164.23,0.2]
[1754097866602,20.85689271,164.24,164.23,0.2]
[1754097866808,63.71689271,164.24,164.23,0.2]
[1754097867332,64.42689271,164.24,164.23,0.2]
[1754097867514,20.85689271,164.24,164.23,8.54333644]
[1754097867711,63.73689271,164.24,164.23,8.54333644]
[1754097867909,4.07220874,164.24,164.23,8.54333644]
[1754097868117,59.64468397,164.26,164.23,8.94333644]
[1754097868314,4.07220874,164.25,164.24,8.74333644]
[1754097868635,16.78468397,164.26,164.24,8.74333644]
[1754097869431,4.07876394,164.25,164.24,8.34333644]
[1754097870423,4.78876394,164.25,164.23,0.2]
[1754097870634,4.07876394,164.25,164.23,8.54333644]
[1754097870838,4.07876394,164.25,164.24,8.34333644]
[1754097871622,26.0,164.28,164.24,8.74333644]
[1754097871939,4.08189858,164.27,164.26,8.34333644]
[1754097876642,4.08189858,164.28,164.26,8.74333644]
[1754097876941,4.08189858,164.28,164.27,8.34333644]
[1754097879426,4.08189858,164.29,164.27,8.34333644]
[1754097879622,20.86658255,164.29,164.28,8.34333644]
[1754097879838,21.54658255,164.29,164.28,8.34333644]
[1754097882218,4.08189858,164.29,164.28,8.34333644]
[1754097882439,20.86658255,164.3,164.28,8.34333644]
[1754097882629,4.08189858,164.29,164.28,8.34333644]
[1754097884132,4.76189858,164.29,164.28,8.34333644]
[1754097885349,4.76189858,164.29,164.25,89.6]
[1754097885543,4.08189858,164.29,164.27,8.34333644]
[1754097885728,0.68,164.28,164.27,8.34333644]
[1754097886324,0.68,164.28,164.25,89.6]
[1754097886537,0.68,164.28,164.27,8.34333644]
[1754097889254,4.76189858,164.28,164.27,8.34333644]
[1754097889455,0.68,164.28,164.27,8.34333644]
[1754097889630,4.76189858,164.28,164.27,8.34333644]
[1754097889828,0.68,164.28,164.27,8.34333644]
[1754097890142,4.76189858,164.28,164.27,8.34333644]
[1754097890346,0.68,164.28,164.27,8.34333644]
[1754097890650,4.76189858,164.28,164.27,8.34333644]
[1754097890950,0.68,164.28,164.27,8.34333644]
[1754097891136,4.76189858,164.28,164.27,8.34333644]
[1754097891335,0.68,164.28,164.27,8.34333644]
[1754097891536,4.76189858,164.28,164.27,8.34333644]
[1754097891728,0.68,164.28,164.27,8.34333644]
[1754097891930,4.76189858,164.28,164.27,8.34333644]
[1754097892130,0.68,164.28,164.27,8.34333644]
[1754097892345,4.76189858,164.28,164.27,8.34333644]
[1754097892551,4.76189858,164.28,164.26,8.34333644]
[1754097892848,4.76189858,164.27,164.26,8.34333644]
[1754097893048,0.68,164.27,164.26,8.34333644]
[1754097893557,4.76189858,164.27,164.26,8.34333644]
[1754097893749,0.68,164.27,164.26,8.34333644]
[1754097894253,4.76189858,164.27,164.26,8.34333644]
[1754097894554,0.68,164.27,164.24,0.06]
[1754097894740,0.68,164.27,164.26,8.34333644]
[1754097894941,4.76189858,164.27,164.26,8.34333644]
[1754097895142,0.68,164.27,164.26,8.34333644]
[1754097895641,4.76189858,164.27,164.26,8.34333644]
[1754097895856,0.68,164.27,164.26,8.34333644]
[1754097896351,4.76189858,164.27,164.26,8.34333644]
[1754097899137,4.76189858,164.27,164.26,8.40333644]
[1754097899339,4.08189858,164.27,164.26,8.40333644]
[1754097900040,4.76189858,164.27,164.26,8.40333644]
[1754097901163,4.76189858,164.27,164.26,0.06]
[1754097901465,4.76189858,164.27,164.26,8.40333644]
[1754097902577,4.76189858,164.27,164.26,0.06]
[1754097902738,4.76189858,164.27,164.26,8.40333644]
[1754097903742,4.08189858,164.27,164.26,8.80333644]
[1754097903954,65.41353392,164.3,164.26,8.80333644]
[1754097903955,4.08189858,164.29,164.26,8.80333644]
[1754097904270,4.08189858,164.28,164.26,0.46]
[1754097904468,4.08189858,164.27,164.26,0.46]
[1754097904632,4.08189858,164.29,164.26,0.06]
[1754097904837,4.08189858,164.28,164.26,0.46]
[1754097905058,4.08189858,164.29,164.26,0.46]
[1754097905267,4.08189858,164.28,164.26,0.46]
[1754097905450,4.08189858,164.29,164.27,8.34333644]
[1754097905649,17.48468397,164.3,164.28,8.34333644]
[1754097905960,4.79838591,164.29,164.28,8.34333644]
[1754097906357,4.79838591,164.29,164.26,0.06]
[1754097906664,4.09838591,164.28,164.26,0.06]
[1754097906850,4.09838591,164.27,164.26,0.06]
[1754097907189,4.79838591,164.27,164.26,0.06]
[1754097908249,4.79838591,164.27,164.26,8.40333644]
[1754097910866,4.09838591,164.27,164.26,0.06]
[1754097911056,4.09838591,164.27,164.26,8.40333644]
[1754097911264,4.79838591,164.27,164.26,8.40333644]
[1754097914481,4.79838591,164.27,164.26,0.06]
[1754097914690,4.79838591,164.27,164.26,8.40333644]
[1754097915672,4.79838591,164.27,164.26,0.06]
[1754097915872,4.79838591,164.27,164.26,8.40333644]
[1754097916773,4.79838591,164.27,164.26,5.40479205]
[1754097919399,4.79838591,164.27,164.26,0.06]
[1754097919576,4.79838591,164.27,164.26,5.40479205]
[1754097920992,4.09838591,164.27,164.26,5.80479205]
[1754097923092,4.09838591,164.27,164.26,11.89270146]
[1754097924560,4.09838591,164.27,164.26,5.80479205]
[1754097928178,4.09838591,164.27,164.26,5.40479205]
[1754097930786,4.09838591,164.27,164.26,5.80479205]
[1754097931480,4.09838591,164.27,164.26,101.49270146]
[1754097934182,4.09838591,164.29,164.26,101.49270146]
[1754097934369,4.09838591,164.28,164.27,48.9075388]
[1754097934688,4.09838591,164.28,164.27,54.25233085]
[1754097934883,4.09838591,164.28,164.27,143.85233085]
[1754097935188,4.09838591,164.29,164.27,143.85233085]
[1754097935486,0.71,164.3,164.28,5.34479205]
[1754097935690,0.71,164.3,164.29,5.34479205]
[1754097935892,4.81481328,164.3,164.29,5.34479205]
[1754097956612,4.81481328,164.3,164.27,138.50748456]
[1754097956914,0.71,164.3,164.29,5.34479205]
[1754097957092,4.81298592,164.3,164.29,5.34479205]
[1754097957299,4.10298592,164.3,164.29,5.34479205]
[1754097957802,4.81298592,164.3,164.29,5.34479205]
[1754097958591,4.81298592,164.3,164.29,94.94479205]
[1754097964491,4.81298592,164.3,164.29,89.66]
[1754097964708,4.81298592,164.3,164.29,95.00479205]
[1754097968325,4.81298592,164.3,164.29,89.66]
[1754097970027,4.81298592,164.3,164.29,0.06]
[1754097970497,10.15777797,164.3,164.29,0.06]
[1754097970828,10.15777797,164.3,164.26,89.66]
[1754097970829,23.0293385,164.3,164.26,89.66]
[1754097971009,5.13802006,164.28,164.26,89.66]
[1754097971321,4.75298592,164.27,164.26,89.66]
[1754097973325,4.75298592,164.27,164.26,0.06]
[1754097973826,4.75298592,164.27,164.26,5.40479205]
[1754097974325,4.75298592,164.27,164.26,0.06]
[1754097974530,4.75298592,164.27,164.26,5.40479205]
[1754097975211,4.75715948,164.27,164.26,5.40479205]
[1754097976430,4.75715948,164.27,164.26,0.06]
[1754097976628,4.75715948,164.27,164.26,5.40479205]
[1754097978635,4.75715948,164.27,164.26,0.06]
[1754097979211,4.75715948,164.27,164.26,89.66]
[1754097979429,4.10715948,164.27,164.26,0.06]
[1754097979728,4.10715948,164.27,164.26,5.40479205]
[1754097980730,4.75715948,164.27,164.26,0.06]
[1754097980910,4.75715948,164.27,164.26,5.40479205]
[1754097981721,4.75715948,164.27,164.26,0.06]
[1754097981924,4.75715948,164.27,164.26,5.40479205]
[1754097982333,4.75715948,164.27,164.26,0.06]
[1754097984129,15.97864763,164.27,164.26,0.06]
[1754097984436,9.89110883,164.27,164.26,0.06]
[1754097986031,4.10715948,164.27,164.26,0.06]
[1754097986237,4.10715948,164.27,164.26,5.40479205]
[1754097986625,4.75715948,164.27,164.26,0.06]
[1754097986831,4.10715948,164.27,164.26,0.06]
[1754097987527,4.75715948,164.27,164.26,0.06]
[1754097997034,4.75715948,164.27,164.26,89.66]
[1754097998945,9.89110883,164.27,164.26,89.66]
[1754098003054,9.89110883,164.27,164.26,0.06]
[1754098003549,36.84469828,164.27,164.26,0.06]
[1754098003746,41.97392801,164.27,164.26,0.06]
[1754098003934,84.79392801,164.27,164.26,0.06]
[1754098004354,101.63044801,164.27,164.26,0.06]
[1754098007271,96.50121828,164.27,164.26,0.06]
[1754098015744,90.41367948,164.27,164.26,0.06]
[1754098016067,73.57715948,164.27,164.26,0.06]
[1754098019655,73.57715948,164.27,164.24,95.00479205]
[1754098019861,9.24010416,164.26,164.24,95.00479205]
[1754098020058,4.10715948,164.25,164.24,95.00479205]
[1754098020775,4.10715948,164.25,164.24,89.66]
[1754098024683,4.10715948,164.25,164.24,95.00479205]
[1754098025757,4.10715948,164.25,164.24,95.40479205]
[1754098026587,4.10715948,164.25,164.24,5.80479205]
[1754098026794,4.10715948,164.25,164.24,95.40479205]
[1754098027159,4.10715948,164.25,164.24,101.4934428]
[1754098028964,4.10715948,164.28,164.24,101.4934428]
[1754098029161,0.03,164.29,164.27,5.34479205]
[1754098029370,0.03,164.29,164.28,5.34479205]
[1754098029688,4.13659707,164.29,164.28,5.34479205]
[1754098029861,4.13659707,164.29,164.28,5.74479205]
[1754098030258,4.13659707,164.29,164.28,5.34479205]
[1754098034376,4.13659707,164.29,164.27,42.8]
[1754098034561,4.78659707,164.28,164.24,96.14863048]
[1754098034765,0.68,164.28,164.27,5.34479205]
[1754098034982,4.78294412,164.28,164.26,42.8]
[1754098035181,0.68,164.28,164.27,5.34479205]
[1754098035378,4.78263903,164.28,164.27,5.34479205]
[1754098037586,4.78263903,164.28,164.26,89.6]
[1754098037787,0.68,164.28,164.27,5.34479205]
[1754098037974,4.78228653,164.28,164.27,5.34479205]
[1754098041391,4.78228653,164.28,164.27,94.94479205]
[1754098043177,4.78228653,164.28,164.27,89.6]
[1754098043572,4.78228653,164.28,164.27,94.94479205]
[1754098043872,4.78228653,164.28,164.27,89.6]
[1754098044277,32.99893079,164.28,164.27,89.6]
[1754098044479,38.13187547,164.28,164.27,89.6]
[1754098045874,58.99893079,164.28,164.24,89.66]
[1754098046094,15.25464729,164.27,164.24,89.66]
[1754098046298,4.10228653,164.26,164.24,89.66]
[1754098046508,4.10228653,164.25,164.24,89.66]
[1754098046712,4.78228653,164.25,164.24,89.66]
[1754098049890,4.78228653,164.25,164.24,0.06]
[1754098057704,9.90985524,164.25,164.24,0.06]
[1754098058011,15.9981353,164.25,164.24,0.06]
[1754098058388,16.21535864,164.25,164.24,0.06]
[1754098059112,21.34261427,164.25,164.24,0.06]
[1754098059701,16.21535864,164.25,164.24,0.06]
[1754098059897,39.78517588,164.25,164.23,0.2]
[1754098060104,26.89176255,164.24,164.23,1e-08]
[1754098060299,26.89176255,164.24,164.22,1e-08]
[1754098060610,16.78468397,164.18,164.13,5.34479205]
[1754098060801,16.78468397,164.18,164.11,0.4]
[1754098060802,16.78468397,164.16,164.12,5.54479205]
[1754098060997,4.10228653,164.15,164.12,5.54479205]
[1754098061202,4.76228653,164.15,164.12,0.2]
[1754098061405,0.66,164.14,164.12,0.2]
[1754098061717,0.66,164.14,164.11,5.34479205]
[1754098062102,0.66,164.13,164.11,5.34479205]
[1754098062337,0.66,164.13,163.88,13.39745473]
[1754098062338,42.78468397,164.11,163.88,13.39745473]
[1754098062496,42.78468397,164.11,164.06,5.34479205]
[1754098062497,46.90228653,164.1,164.06,5.34479205]
[1754098062691,4.10228653,164.09,164.08,5.34479205]
[1754098062888,4.10228653,164.09,164.08,6.69553427]
[1754098063093,16.78468397,164.1,164.0,49.49553427]
[1754098063301,17.44468397,164.1,164.07,6.69553427]
[1754098063503,0.66,164.09,164.07,6.69553427]
[1754098064202,0.66,164.09,164.04,0.16]
[1754098064421,0.66,164.08,164.07,6.69553427]
[1754098065120,0.66,164.09,164.07,6.69553427]
[1754098065500,0.66,164.09,164.06,6.69553427]
[1754098065999,0.66,164.09,164.04,0.16]
[1754098066202,0.66,164.08,164.06,6.69553427]
[1754098067509,0.66,164.08,164.04,0.16]
[1754098067707,0.66,164.08,164.06,6.69553427]
[1754098067923,0.66,164.07,164.04,6.69553427]
[1754098068224,0.66,164.07,164.05,6.69553427]
[1754098068821,17.44468397,164.1,164.06,6.69553427]
[1754098068999,42.82,164.09,164.06,6.69553427]
[1754098069192,43.48,164.09,164.06,6.69553427]
[1754098069393,43.48,164.09,164.05,0.16]
[1754098069593,43.48,164.09,164.06,6.69553427]
[1754098071030,43.48,164.09,164.05,6.69553427]
[1754098071219,0.66,164.08,164.06,6.69553427]
[1754098072220,0.66,164.08,164.05,6.69553427]
[1754098072431,0.66,164.07,164.05,6.69553427]
[1754098073499,0.66,164.07,164.05,6.75553427]
[1754098073831,0.66,164.07,164.05,0.06]
[1754098074038,0.66,164.07,164.05,96.35553427]
[1754098075518,42.82,164.09,164.05,96.35553427]
[1754098075698,0.66,164.06,164.05,96.35553427]
[1754098076309,0.66,164.07,164.05,96.35553427]
[1754098076711,0.66,164.07,164.05,89.66]
[1754098077098,0.66,164.07,164.05,96.35553427]
[1754098077826,42.82,164.09,164.05,96.35553427]
[1754098078123,0.66,164.06,164.05,96.35553427]
[1754098078319,42.82,164.09,164.05,96.35553427]
[1754098078508,0.66,164.07,164.06,6.69553427]
[1754098078704,42.82,164.09,164.06,6.69553427]
[1754098078908,43.5,164.1,164.08,6.69553427]
[1754098080625,26.0,164.1,164.08,6.69553427]
[1754098080929,42.87,164.11,164.09,6.69553427]
[1754098081232,0.03,164.11,164.09,6.69553427]
[1754098081603,0.74,164.11,164.09,6.69553427]
[1754098081803,0.74,164.11,164.08,6.69553427]
[1754098082109,0.74,164.11,164.09,6.69553427]
[1754098082335,0.74,164.11,164.07,6.09489703]
[1754098082614,0.74,164.11,164.09,6.69553427]
[1754098083739,0.03,164.11,164.09,6.69553427]
[1754098083919,0.03,164.11,164.1,6.69553427]
[1754098085718,0.03,164.11,164.08,6.25450422]
[1754098085913,0.03,164.11,164.1,6.69553427]
[1754098086412,0.03,164.11,164.09,6.69553427]
[1754098086629,0.03,164.11,164.08,6.25450422]
[1754098086818,0.03,164.11,164.1,6.69553427]
[1754098087429,0.74,164.11,164.1,6.69553427]
[1754098088528,0.74,164.11,164.09,6.69553427]
[1754098088829,0.74,164.11,164.09,96.29553427]
[1754098090920,0.03,164.11,164.09,96.29553427]
[1754098091321,0.74,164.11,164.09,6.69553427]
[1754098091735,0.74,164.11,164.05,96.35553427]
[1754098091941,30.80529915,164.11,164.05,96.35553427]
[1754098092141,32.72553427,164.11,164.05,96.35553427]
[1754098092328,69.55,164.1,164.06,6.69553427]
[1754098092646,0.71,164.09,164.07,6.69553427]
[1754098093138,68.84,164.1,164.07,6.69553427]
[1754098093444,0.71,164.08,164.07,6.69553427]
[1754098095913,69.55,164.1,164.07,6.69553427]
[1754098096120,0.71,164.09,164.07,6.69553427]
[1754098096931,0.71,164.09,164.08,6.69553427]
[1754098097135,68.84,164.1,164.08,6.69553427]
[1754098097443,0.03,164.11,164.09,6.69553427]
[1754098097645,0.74,164.11,164.1,6.69553427]
[1754098097946,0.03,164.11,164.1,6.69553427]
[1754098099644,0.03,164.11,164.1,96.29553427]
[1754098102744,0.03,164.11,164.1,102.38937948]
[1754098103128,4.11072406,164.11,164.1,102.54937948]
[1754098103327,0.03,164.11,164.1,102.54937948]
[1754098104144,4.11072406,164.11,164.1,102.54937948]
[1754098104444,0.03,164.11,164.1,102.54937948]
[1754098107255,0.03,164.11,164.1,109.24491375]
[1754098108455,0.03,164.13,164.1,124.47952679]
[1754098108636,0.03,164.13,164.12,6.69553427]
[1754098108837,0.03,164.13,164.12,96.29553427]
[1754098109234,0.03,164.13,164.12,102.54863687]
[1754098111152,0.73,164.13,164.12,89.6]
[1754098111356,0.73,164.13,164.12,139.11553427]
[1754098113143,0.73,164.13,164.12,132.42]
[1754098113332,0.73,164.13,164.12,139.11553427]
[1754098115935,0.03,164.13,164.12,145.20863687]
[1754098120670,0.03,164.13,164.12,138.5131026]
[1754098120871,0.73,164.13,164.12,139.11553427]
[1754098125149,0.03,164.13,164.12,139.11553427]
[1754098125550,0.73,164.13,164.12,139.11553427]
[1754098127167,0.73,164.13,164.12,132.42]
[1754098127670,0.73,164.13,164.12,139.11553427]
[1754098128263,0.73,164.13,164.12,96.29553427]
[1754098131169,0.73,164.13,164.12,89.6]
[1754098131371,0.73,164.13,164.12,96.29553427]
[1754098134555,0.03,164.13,164.12,96.29553427]
[1754098141572,0.71,164.13,164.12,96.29553427]
[1754098142561,0.71,164.13,164.12,89.6]
[1754098142877,4.81718964,164.13,164.12,96.29553427]
[1754098143079,0.71,164.13,164.12,96.29553427]
[1754098143281,4.81718964,164.13,164.12,96.29553427]
[1754098143472,0.71,164.13,164.12,96.29553427]
[1754098143666,4.81718964,164.13,164.12,96.29553427]
[1754098143871,0.71,164.13,164.12,96.29553427]
[1754098144064,4.81718964,164.13,164.12,96.29553427]
[1754098144286,0.71,164.13,164.12,96.29553427]
[1754098144591,4.81718964,164.13,164.12,96.29553427]
[1754098146072,4.81952663,164.13,164.12,96.29553427]
[1754098148791,4.81952663,164.13,164.12,93.88217958]
[1754098149087,4.81952663,164.13,164.12,89.6]
[1754098149296,4.81952663,164.13,164.12,93.88217958]
[1754098151580,0.03,164.13,164.12,100.13528218]
[1754098153998,0.03,164.13,164.12,99.97528218]
[1754098154203,0.71,164.13,164.12,99.97528218]
[1754098154868,0.03,164.13,164.12,99.97528218]
[1754098155978,0.03,164.13,164.12,89.6]
[1754098156196,0.03,164.13,164.12,93.88217958]
[1754098157200,0.03,164.13,164.12,99.97528218]
[1754098165919,0.71,164.13,164.12,99.97528218]
[1754098166216,0.03,164.13,164.12,99.97528218]